[Event "Titled Tuesday Blitz August 3 2021"]
[White "Begunov, Konstantin"]
[Black "Mikhailovsky, Vladimir"]
[WhiteFideId "4118510"]
[BlackFideId "34105414"]
[WhiteElo "2262"]
[BlackElo "2315"]
[Result "0-1"]
[Round "11"]
[TimeControl "180+1"]
[Date "2021.08.03"]
[WhiteClock "0:00:01"]
[BlackClock "0:00:04"]

1. d4 {[%clk 0:03:00]}  Nf6 {[%clk 0:02:55]} 2. c4 {[%clk 0:03:00]}  e6 {[%clk 0:02:54]} 3. Nf3 {[%clk 0:02:59]}  d5 {[%clk 0:02:53]} 4. Nc3 {[%clk 0:02:59]}  a6 {[%clk 0:02:53]} 5. cxd5 {[%clk 0:02:58]}  exd5 {[%clk 0:02:53]} 6. Bg5 {[%clk 0:02:58]}  Be6 {[%clk 0:02:54]} 7. e3 {[%clk 0:02:58]}  Nbd7 {[%clk 0:02:53]} 8. Be2 {[%clk 0:02:56]}  Bd6 {[%clk 0:02:53]} 9. O-O {[%clk 0:02:55]}  O-O {[%clk 0:02:53]} 10. a3 {[%clk 0:02:55]}  h6 {[%clk 0:02:51]} 11. Bh4 {[%clk 0:02:55]}  c6 {[%clk 0:02:48]} 12. b4 {[%clk 0:02:54]}  Re8 {[%clk 0:02:47]} 13. Na4 {[%clk 0:02:53]}  b5 {[%clk 0:02:42]} 14. Nc5 {[%clk 0:02:44]}  Nb6 {[%clk 0:02:42]} 15. Ne5 {[%clk 0:02:20]}  Qc7 {[%clk 0:02:17]} 16. Bxf6 {[%clk 0:02:15]}  gxf6 {[%clk 0:02:18]} 17. Nf3 {[%clk 0:02:14]}  Kh8 {[%clk 0:02:12]} 18. g3 {[%clk 0:02:08]}  Rg8 {[%clk 0:02:11]} 19. Nh4 {[%clk 0:01:56]}  Bh3 {[%clk 0:01:31]} 20. Kh1 {[%clk 0:01:12]}  Bxf1 {[%clk 0:01:17]} 21. Qxf1 {[%clk 0:01:12]}  Bf8 {[%clk 0:01:18]} 22. Qh3 {[%clk 0:01:08]}  Nc4 {[%clk 0:00:53]} 23. Qf5 {[%clk 0:00:59]}  Qe7 {[%clk 0:00:42]} 24. Bd3 {[%clk 0:00:58]}  Rg7 {[%clk 0:00:42]} 25. Qh5 {[%clk 0:00:57]}  Rg5 {[%clk 0:00:40]} 26. Qe2 {[%clk 0:00:46]}  Nd6 {[%clk 0:00:40]} 27. Qf3 {[%clk 0:00:35]}  a5 {[%clk 0:00:35]} 28. Rc1 {[%clk 0:00:32]}  axb4 {[%clk 0:00:35]} 29. axb4 {[%clk 0:00:33]}  Ra3 {[%clk 0:00:34]} 30. Nf5 {[%clk 0:00:31]}  Nxf5 {[%clk 0:00:29]} 31. Bxf5 {[%clk 0:00:32]}  Qa7 {[%clk 0:00:13]} 32. h4 {[%clk 0:00:32]}  Rg8 {[%clk 0:00:08]} 33. Kg2 {[%clk 0:00:29]}  Ra1 {[%clk 0:00:06]} 34. Bb1 {[%clk 0:00:28]}  Bg7 {[%clk 0:00:05]} 35. Qf5 {[%clk 0:00:27]}  Rxb1 {[%clk 0:00:04]} 36. Rxb1 {[%clk 0:00:28]}  Qa3 {[%clk 0:00:03]} 37. Nd3 {[%clk 0:00:22]}  Re8 {[%clk 0:00:02]} 38. Nf4 {[%clk 0:00:21]}  Qa2 {[%clk 0:00:02]} 39. Rc1 {[%clk 0:00:20]}  Rxe3 {[%clk 0:00:02]} 40. Rxc6 {[%clk 0:00:20]}  Re8 {[%clk 0:00:03]} 41. Rc7 {[%clk 0:00:19]}  Qb2 {[%clk 0:00:02]} 42. Rxf7 {[%clk 0:00:17]}  Qxd4 {[%clk 0:00:02]} 43. Qg4 {[%clk 0:00:13]}  Qe4+ {[%clk 0:00:02]} 44. Kh2 {[%clk 0:00:12]}  Rg8 {[%clk 0:00:02]} 45. Ng6+ {[%clk 0:00:12]}  Kh7 {[%clk 0:00:03]} 46. Nf8+ {[%clk 0:00:09]}  Kh8 {[%clk 0:00:02]} 47. Ne6 {[%clk 0:00:09]}  Qxg4 {[%clk 0:00:02]} 48. Nf4 {[%clk 0:00:06]}  Qf5 {[%clk 0:00:02]} 49. h5 {[%clk 0:00:06]}  Kh7 {[%clk 0:00:03]} 50. Kg2 {[%clk 0:00:05]}  d4 {[%clk 0:00:03]} 51. Rb7 {[%clk 0:00:03]}  d3 {[%clk 0:00:04]} 52. Rb6 {[%clk 0:00:03]}  Qe4+ {[%clk 0:00:04]} 53. Kh2 {[%clk 0:00:02]}  d2 {[%clk 0:00:04]} 54. Rd6 {[%clk 0:00:01]}  Qe1 {[%clk 0:00:04]} 0-1


[Site "https://www.chess.com"]

[Event "Titled Tuesday Blitz August 3 2021"]
[White "Bortnyk, Olexandr"]
[Black "Martinez Alcantara, Jose Eduardo"]
[WhiteFideId "14120828"]
[BlackFideId "3805662"]
[WhiteElo "2723"]
[BlackElo "2690"]
[Result "1-0"]
[Round "11"]
[TimeControl "180+1"]
[Date "2021.08.03"]
[WhiteClock "0:00:09"]
[BlackClock "0:00:09"]

1. e4 {[%clk 0:03:00]}  c5 {[%clk 0:02:58]} 2. Be2 {[%clk 0:03:00]}  Nc6 {[%clk 0:02:52]} 3. f4 {[%clk 0:02:58]}  g6 {[%clk 0:02:51]} 4. Nf3 {[%clk 0:02:58]}  Bg7 {[%clk 0:02:51]} 5. d3 {[%clk 0:02:58]}  Nf6 {[%clk 0:02:51]} 6. c3 {[%clk 0:02:50]}  O-O {[%clk 0:02:50]} 7. O-O {[%clk 0:02:47]}  d6 {[%clk 0:02:39]} 8. Qe1 {[%clk 0:02:43]}  e6 {[%clk 0:02:36]} 9. Nbd2 {[%clk 0:02:38]}  b6 {[%clk 0:02:32]} 10. Kh1 {[%clk 0:02:27]}  Rb8 {[%clk 0:02:27]} 11. a4 {[%clk 0:02:23]}  a6 {[%clk 0:02:26]} 12. Nc4 {[%clk 0:02:06]}  d5 {[%clk 0:02:15]} 13. Nce5 {[%clk 0:02:05]}  Ne7 {[%clk 0:02:14]} 14. Ng5 {[%clk 0:01:34]}  h6 {[%clk 0:02:08]} 15. Qh4 {[%clk 0:01:33]}  dxe4 {[%clk 0:02:03]} 16. dxe4 {[%clk 0:01:31]}  Bb7 {[%clk 0:01:22]} 17. Ngxf7 {[%clk 0:01:01]}  Rxf7 {[%clk 0:01:21]} 18. Nxf7 {[%clk 0:01:02]}  Kxf7 {[%clk 0:01:21]} 19. f5 {[%clk 0:01:03]}  g5 {[%clk 0:01:00]} 20. Bxg5 {[%clk 0:00:31]}  hxg5 {[%clk 0:01:00]} 21. Qxg5 {[%clk 0:00:32]}  e5 {[%clk 0:00:34]} 22. Bc4+ {[%clk 0:00:30]}  Kf8 {[%clk 0:00:34]} 23. Rad1 {[%clk 0:00:30]}  Qe8 {[%clk 0:00:35]} 24. Rd6 {[%clk 0:00:31]}  Nxe4 {[%clk 0:00:23]} 25. Qg4 {[%clk 0:00:18]}  Nxd6 {[%clk 0:00:14]} 26. f6 {[%clk 0:00:19]}  Ng6 {[%clk 0:00:13]} 27. Bb3 {[%clk 0:00:03]}  c4 {[%clk 0:00:09]} 28. Bc2 {[%clk 0:00:03]}  e4 {[%clk 0:00:10]} 29. Qg5 {[%clk 0:00:01]}  Kg8 {[%clk 0:00:09]} 30. fxg7 {[%clk 0:00:01]}  Kxg7 {[%clk 0:00:10]} 31. Qf6+ {[%clk 0:00:02]}  Kh7 {[%clk 0:00:07]} 32. Qxd6 {[%clk 0:00:03]}  Rd8 {[%clk 0:00:06]} 33. Qxb6 {[%clk 0:00:03]}  Qe7 {[%clk 0:00:04]} 34. Qe3 {[%clk 0:00:02]}  Rd6 {[%clk 0:00:03]} 35. h3 {[%clk 0:00:02]}  Kg7 {[%clk 0:00:03]} 36. Re1 {[%clk 0:00:02]}  Rf6 {[%clk 0:00:03]} 37. Qd4 {[%clk 0:00:02]}  Qe5 {[%clk 0:00:03]} 38. Qxc4 {[%clk 0:00:02]}  Bd5 {[%clk 0:00:03]} 39. Qc5 {[%clk 0:00:03]}  e3 {[%clk 0:00:03]} 40. Qxe3 {[%clk 0:00:03]}  Qxe3 {[%clk 0:00:02]} 41. Rxe3 {[%clk 0:00:04]}  Rf2 {[%clk 0:00:02]} 42. Bxg6 {[%clk 0:00:04]}  Kxg6 {[%clk 0:00:02]} 43. Rg3+ {[%clk 0:00:04]}  Kf5 {[%clk 0:00:03]} 44. b4 {[%clk 0:00:04]}  Ra2 {[%clk 0:00:03]} 45. a5 {[%clk 0:00:05]}  Kf4 {[%clk 0:00:03]} 46. Kh2 {[%clk 0:00:05]}  Rc2 {[%clk 0:00:02]} 47. Rg4+ {[%clk 0:00:05]}  Kf5 {[%clk 0:00:03]} 48. Rg3 {[%clk 0:00:04]}  Kf4 {[%clk 0:00:04]} 49. h4 {[%clk 0:00:05]}  Be4 {[%clk 0:00:04]} 50. h5 {[%clk 0:00:05]}  Rd2 {[%clk 0:00:03]} 51. c4 {[%clk 0:00:05]}  Rd6 {[%clk 0:00:03]} 52. Rg7 {[%clk 0:00:04]}  Rh6 {[%clk 0:00:02]} 53. g4 {[%clk 0:00:04]}  Rd6 {[%clk 0:00:02]} 54. Kh3 {[%clk 0:00:04]}  Rd1 {[%clk 0:00:02]} 55. Rf7+ {[%clk 0:00:05]}  Ke5 {[%clk 0:00:02]} 56. Kh4 {[%clk 0:00:04]}  Rc1 {[%clk 0:00:02]} 57. c5 {[%clk 0:00:04]}  Rc4 {[%clk 0:00:02]} 58. h6 {[%clk 0:00:04]}  Rxb4 {[%clk 0:00:02]} 59. h7 {[%clk 0:00:04]}  Rb8 {[%clk 0:00:02]} 60. Kg5 {[%clk 0:00:04]}  Ke6 {[%clk 0:00:02]} 61. Ra7 {[%clk 0:00:03]}  Rh8 {[%clk 0:00:02]} 62. Kh6 {[%clk 0:00:04]}  Kd5 {[%clk 0:00:02]} 63. g5 {[%clk 0:00:04]}  Bxh7 {[%clk 0:00:02]} 64. Rxh7 {[%clk 0:00:04]}  Rg8 {[%clk 0:00:02]} 65. g6 {[%clk 0:00:04]}  Kxc5 {[%clk 0:00:03]} 66. g7 {[%clk 0:00:03]}  Kb5 {[%clk 0:00:01]} 67. Rh8 {[%clk 0:00:04]}  Rxg7 {[%clk 0:00:02]} 68. Kxg7 {[%clk 0:00:04]}  Kxa5 {[%clk 0:00:03]} 69. Rb8 {[%clk 0:00:05]}  Ka4 {[%clk 0:00:03]} 70. Kf6 {[%clk 0:00:05]}  a5 {[%clk 0:00:04]} 71. Ke5 {[%clk 0:00:06]}  Ka3 {[%clk 0:00:05]} 72. Kd4 {[%clk 0:00:07]}  a4 {[%clk 0:00:06]} 73. Kc3 {[%clk 0:00:08]}  Ka2 {[%clk 0:00:06]} 74. Rb4 {[%clk 0:00:06]}  a3 {[%clk 0:00:07]} 75. Rb3 {[%clk 0:00:07]}  Ka1 {[%clk 0:00:07]} 76. Rxa3+ {[%clk 0:00:07]}  Kb1 {[%clk 0:00:08]} 77. Ra4 {[%clk 0:00:08]}  Kc1 {[%clk 0:00:09]} 78. Ra1# {[%clk 0:00:09]} 1-0


[Site "https://www.chess.com"]

[Event "Titled Tuesday Blitz August 3 2021"]
[White "Chen, Max"]
[Black "Labussiere, Victor"]
[WhiteFideId "2622440"]
[BlackFideId "2183129"]
[WhiteElo "2455"]
[BlackElo "1921"]
[Result "1/2-1/2"]
[Round "11"]
[TimeControl "180+1"]
[Date "2021.08.03"]
[WhiteClock "0:00:45"]
[BlackClock "0:00:41"]

1. e4 {[%clk 0:03:00]}  c5 {[%clk 0:02:58]} 2. Nf3 {[%clk 0:02:59]}  d6 {[%clk 0:02:57]} 3. d4 {[%clk 0:02:59]}  Nf6 {[%clk 0:02:57]} 4. Bb5+ {[%clk 0:02:39]}  Bd7 {[%clk 0:02:56]} 5. Bxd7+ {[%clk 0:02:38]}  Qxd7 {[%clk 0:02:56]} 6. Nc3 {[%clk 0:02:35]}  cxd4 {[%clk 0:02:55]} 7. Nxd4 {[%clk 0:02:35]}  Nc6 {[%clk 0:02:56]} 8. O-O {[%clk 0:02:33]}  g6 {[%clk 0:02:54]} 9. Re1 {[%clk 0:02:29]}  Bg7 {[%clk 0:02:53]} 10. Nxc6 {[%clk 0:02:30]}  Qxc6 {[%clk 0:02:52]} 11. Qd3 {[%clk 0:02:27]}  O-O {[%clk 0:02:52]} 12. Bf4 {[%clk 0:02:23]}  Rac8 {[%clk 0:02:49]} 13. Rad1 {[%clk 0:02:22]}  Qb6 {[%clk 0:02:33]} 14. Bc1 {[%clk 0:02:00]}  Qa5 {[%clk 0:02:10]} 15. a3 {[%clk 0:01:49]}  Rfe8 {[%clk 0:01:45]} 16. Nd5 {[%clk 0:01:29]}  Ng4 {[%clk 0:01:43]} 17. c3 {[%clk 0:01:22]}  e6 {[%clk 0:01:39]} 18. Nb4 {[%clk 0:01:15]}  Red8 {[%clk 0:01:07]} 19. Qg3 {[%clk 0:00:55]}  Ne5 {[%clk 0:01:01]} 20. h4 {[%clk 0:00:53]}  Nc4 {[%clk 0:01:00]} 21. Rd3 {[%clk 0:00:50]}  Ne5 {[%clk 0:00:48]} 22. Rdd1 {[%clk 0:00:48]}  Nc4 {[%clk 0:00:48]} 23. Rd3 {[%clk 0:00:45]}  Ne5 {[%clk 0:00:41]} 24. Rdd1 {[%clk 0:00:45]} 1/2-1/2


[Site "https://www.chess.com"]

[Event "Titled Tuesday Blitz August 3 2021"]
[White "Costachi, Mihnea"]
[Black "Sarana, Alexey"]
[WhiteFideId "1217518"]
[BlackFideId "24133795"]
[WhiteElo "2482"]
[BlackElo "2646"]
[Result "0-1"]
[Round "11"]
[TimeControl "180+1"]
[Date "2021.08.03"]
[WhiteClock "0:00:03"]
[BlackClock "0:00:32"]

1. d4 {[%clk 0:03:00]}  Nf6 {[%clk 0:02:59]} 2. c4 {[%clk 0:03:00]}  e6 {[%clk 0:02:59]} 3. Nf3 {[%clk 0:02:59]}  d5 {[%clk 0:02:59]} 4. Nc3 {[%clk 0:03:00]}  dxc4 {[%clk 0:03:00]} 5. e3 {[%clk 0:03:00]}  a6 {[%clk 0:02:59]} 6. Bxc4 {[%clk 0:03:00]}  b5 {[%clk 0:03:00]} 7. Bb3 {[%clk 0:03:01]}  Bb7 {[%clk 0:02:58]} 8. O-O {[%clk 0:03:02]}  Nbd7 {[%clk 0:02:56]} 9. e4 {[%clk 0:03:02]}  b4 {[%clk 0:02:56]} 10. e5 {[%clk 0:03:00]}  bxc3 {[%clk 0:02:56]} 11. exf6 {[%clk 0:03:00]}  Qxf6 {[%clk 0:02:56]} 12. bxc3 {[%clk 0:03:01]}  Bxf3 {[%clk 0:02:57]} 13. Qxf3 {[%clk 0:03:02]}  Qxf3 {[%clk 0:02:57]} 14. gxf3 {[%clk 0:03:03]}  Bd6 {[%clk 0:02:58]} 15. Ba4 {[%clk 0:02:47]}  Ke7 {[%clk 0:02:57]} 16. Bc6 {[%clk 0:02:47]}  Rab8 {[%clk 0:02:58]} 17. c4 {[%clk 0:02:48]}  Bb4 {[%clk 0:02:55]} 18. Bf4 {[%clk 0:02:36]}  Rb6 {[%clk 0:02:52]} 19. Be4 {[%clk 0:02:27]}  c5 {[%clk 0:02:28]} 20. Bc7 {[%clk 0:02:23]}  cxd4 {[%clk 0:02:27]} 21. a4 {[%clk 0:01:55]}  a5 {[%clk 0:02:22]} 22. Bxb6 {[%clk 0:01:45]}  Nxb6 {[%clk 0:02:22]} 23. Rfd1 {[%clk 0:01:44]}  Rc8 {[%clk 0:02:16]} 24. Rac1 {[%clk 0:01:33]}  Bc5 {[%clk 0:02:12]} 25. Rb1 {[%clk 0:01:30]}  Nxa4 {[%clk 0:02:09]} 26. Rb7+ {[%clk 0:01:28]}  Kf6 {[%clk 0:02:02]} 27. Ra1 {[%clk 0:01:29]}  Nc3 {[%clk 0:02:02]} 28. Rxa5 {[%clk 0:01:28]}  h5 {[%clk 0:01:56]} 29. Bd3 {[%clk 0:01:21]}  g5 {[%clk 0:01:56]} 30. Kg2 {[%clk 0:01:14]}  g4 {[%clk 0:01:53]} 31. fxg4 {[%clk 0:01:13]}  hxg4 {[%clk 0:01:54]} 32. Kg3 {[%clk 0:01:11]}  Bd6+ {[%clk 0:01:53]} 33. Kxg4 {[%clk 0:01:10]}  Rh8 {[%clk 0:01:15]} 34. Raa7 {[%clk 0:01:07]}  Rf8 {[%clk 0:01:14]} 35. h4 {[%clk 0:01:04]}  Bc5 {[%clk 0:01:15]} 36. Ra5 {[%clk 0:01:02]}  Be7 {[%clk 0:01:15]} 37. Rd7 {[%clk 0:00:55]}  Nd1 {[%clk 0:01:04]} 38. Kf3 {[%clk 0:00:52]}  Nb2 {[%clk 0:01:03]} 39. Rxd4 {[%clk 0:00:50]}  Bb4 {[%clk 0:01:01]} 40. Rb5 {[%clk 0:00:41]}  Bc3 {[%clk 0:01:00]} 41. Rf4+ {[%clk 0:00:41]}  Ke7 {[%clk 0:00:59]} 42. Be2 {[%clk 0:00:37]}  f5 {[%clk 0:00:56]} 43. c5 {[%clk 0:00:37]}  e5 {[%clk 0:00:56]} 44. Rb3 {[%clk 0:00:28]}  e4+ {[%clk 0:00:49]} 45. Ke3 {[%clk 0:00:22]}  Be5 {[%clk 0:00:46]} 46. h5 {[%clk 0:00:22]}  Na4 {[%clk 0:00:44]} 47. Rb7+ {[%clk 0:00:17]}  Kf6 {[%clk 0:00:44]} 48. Rh4 {[%clk 0:00:14]}  Nxc5 {[%clk 0:00:43]} 49. Rb6+ {[%clk 0:00:14]}  Kg5 {[%clk 0:00:43]} 50. Rh1 {[%clk 0:00:15]}  f4+ {[%clk 0:00:39]} 51. Kd2 {[%clk 0:00:15]}  Rd8+ {[%clk 0:00:40]} 52. Kc2 {[%clk 0:00:15]}  f3 {[%clk 0:00:40]} 53. Rg6+ {[%clk 0:00:15]}  Kf5 {[%clk 0:00:38]} 54. Bf1 {[%clk 0:00:14]}  Bf4 {[%clk 0:00:37]} 55. Bh3+ {[%clk 0:00:09]}  Ke5 {[%clk 0:00:37]} 56. Rd1 {[%clk 0:00:08]}  Nd3 {[%clk 0:00:37]} 57. Ra1 {[%clk 0:00:07]}  Nxf2 {[%clk 0:00:34]} 58. Ra5+ {[%clk 0:00:05]}  Kd4 {[%clk 0:00:35]} 59. Ra4+ {[%clk 0:00:05]}  Ke3 {[%clk 0:00:34]} 60. Re6 {[%clk 0:00:02]}  Rc8+ {[%clk 0:00:32]} 61. Kb3 {[%clk 0:00:02]}  Rb8+ {[%clk 0:00:32]} 62. Rb4 {[%clk 0:00:02]}  Rxb4+ {[%clk 0:00:31]} 63. Kxb4 {[%clk 0:00:03]}  Nxh3 {[%clk 0:00:31]} 64. h6 {[%clk 0:00:02]}  Bxh6 {[%clk 0:00:31]} 65. Rxh6 {[%clk 0:00:02]}  Nf4 {[%clk 0:00:31]} 66. Rf6 {[%clk 0:00:02]}  f2 {[%clk 0:00:32]} 67. Rxf4 {[%clk 0:00:03]}  Kxf4 {[%clk 0:00:32]} 0-1


[Site "https://www.chess.com"]

[Event "Titled Tuesday Blitz August 3 2021"]
[White "Drogovoz, Irina"]
[Black "Boraso, Alessio"]
[WhiteFideId "4176715"]
[BlackFideId "848077"]
[WhiteElo "2163"]
[BlackElo "2277"]
[Result "1-0"]
[Round "11"]
[TimeControl "180+1"]
[Date "2021.08.03"]
[WhiteClock "0:02:06"]
[BlackClock "0:01:24"]

1. d4 {[%clk 0:02:58]}  Nf6 {[%clk 0:02:59]} 2. c4 {[%clk 0:02:57]}  g6 {[%clk 0:02:59]} 3. Nc3 {[%clk 0:02:57]}  Bg7 {[%clk 0:02:59]} 4. e4 {[%clk 0:02:57]}  O-O {[%clk 0:02:59]} 5. Nge2 {[%clk 0:02:46]}  d6 {[%clk 0:02:58]} 6. Ng3 {[%clk 0:02:47]}  h5 {[%clk 0:02:58]} 7. f3 {[%clk 0:02:39]}  c5 {[%clk 0:02:57]} 8. d5 {[%clk 0:02:38]}  e6 {[%clk 0:02:57]} 9. Bg5 {[%clk 0:02:36]}  exd5 {[%clk 0:02:57]} 10. Nxd5 {[%clk 0:02:30]}  Nbd7 {[%clk 0:02:57]} 11. Qd2 {[%clk 0:02:28]}  Re8 {[%clk 0:02:35]} 12. Be2 {[%clk 0:02:27]}  h4 {[%clk 0:02:31]} 13. Bxh4 {[%clk 0:02:24]}  Nxe4 {[%clk 0:02:31]} 14. Bxd8 {[%clk 0:02:13]}  Nxd2 {[%clk 0:02:32]} 15. Nc7 {[%clk 0:02:11]}  Rxd8 {[%clk 0:02:27]} 16. Nxa8 {[%clk 0:02:11]}  Bxb2 {[%clk 0:02:06]} 17. Rd1 {[%clk 0:02:09]}  Bc3 {[%clk 0:02:06]} 18. Rxd2 {[%clk 0:02:08]}  Bxd2+ {[%clk 0:01:59]} 19. Kxd2 {[%clk 0:02:08]}  Nb6 {[%clk 0:01:23]} 20. Nxb6 {[%clk 0:02:07]}  Be6 {[%clk 0:01:24]} 21. Nd5 {[%clk 0:02:06]} 1-0


[Site "https://www.chess.com"]

[Event "Titled Tuesday Blitz August 3 2021"]
[White "Egorov, Evgeny"]
[Black "Krysa, Leandro"]
[WhiteFideId "13700421"]
[BlackFideId "116807"]
[WhiteElo "2422"]
[BlackElo "2490"]
[Result "0-1"]
[Round "11"]
[TimeControl "180+1"]
[Date "2021.08.03"]
[WhiteClock "0:00:12"]
[BlackClock "0:00:17"]

1. e4 {[%clk 0:03:00]}  c5 {[%clk 0:02:56]} 2. Nc3 {[%clk 0:03:00]}  e6 {[%clk 0:02:55]} 3. Nge2 {[%clk 0:03:00]}  a6 {[%clk 0:02:55]} 4. g3 {[%clk 0:02:59]}  b5 {[%clk 0:02:55]} 5. Bg2 {[%clk 0:02:59]}  Bb7 {[%clk 0:02:55]} 6. O-O {[%clk 0:02:59]}  d6 {[%clk 0:02:45]} 7. d4 {[%clk 0:02:58]}  cxd4 {[%clk 0:02:42]} 8. Nxd4 {[%clk 0:02:59]}  Nc6 {[%clk 0:02:41]} 9. Re1 {[%clk 0:02:57]}  Nxd4 {[%clk 0:02:38]} 10. Qxd4 {[%clk 0:02:56]}  Ne7 {[%clk 0:02:39]} 11. a4 {[%clk 0:02:43]}  Nc6 {[%clk 0:02:37]} 12. Qd1 {[%clk 0:02:33]}  b4 {[%clk 0:02:37]} 13. Nd5 {[%clk 0:02:32]}  Be7 {[%clk 0:02:33]} 14. Nxe7 {[%clk 0:02:31]}  Qxe7 {[%clk 0:02:34]} 15. b3 {[%clk 0:02:28]}  O-O {[%clk 0:02:32]} 16. Bb2 {[%clk 0:02:27]}  Rac8 {[%clk 0:02:31]} 17. a5 {[%clk 0:02:26]}  Rfd8 {[%clk 0:02:24]} 18. Qh5 {[%clk 0:02:23]}  Ne5 {[%clk 0:02:21]} 19. Re2 {[%clk 0:02:22]}  Rc5 {[%clk 0:02:13]} 20. Bd4 {[%clk 0:02:00]}  Rb5 {[%clk 0:02:12]} 21. Qh4 {[%clk 0:01:36]}  Qxh4 {[%clk 0:02:07]} 22. gxh4 {[%clk 0:01:36]}  Rc8 {[%clk 0:02:08]} 23. Rd2 {[%clk 0:01:34]}  Ng6 {[%clk 0:01:40]} 24. Be3 {[%clk 0:01:18]}  Nxh4 {[%clk 0:01:35]} 25. f3 {[%clk 0:01:17]}  d5 {[%clk 0:01:29]} 26. e5 {[%clk 0:01:07]}  d4 {[%clk 0:01:23]} 27. Bxd4 {[%clk 0:01:05]}  Bxf3 {[%clk 0:01:21]} 28. Bf1 {[%clk 0:01:03]}  Bb7 {[%clk 0:01:14]} 29. Bxb5 {[%clk 0:00:54]}  Nf3+ {[%clk 0:01:14]} 30. Kf2 {[%clk 0:00:54]}  Nxd2 {[%clk 0:01:14]} 31. Bd3 {[%clk 0:00:52]}  Ne4+ {[%clk 0:01:11]} 32. Ke3 {[%clk 0:00:48]}  Nc5 {[%clk 0:01:10]} 33. Bc4 {[%clk 0:00:39]}  Kf8 {[%clk 0:00:55]} 34. Bxc5+ {[%clk 0:00:39]}  Rxc5 {[%clk 0:00:55]} 35. Kd4 {[%clk 0:00:40]}  Rc7 {[%clk 0:00:53]} 36. Ra4 {[%clk 0:00:40]}  g5 {[%clk 0:00:42]} 37. Rxb4 {[%clk 0:00:39]}  h5 {[%clk 0:00:43]} 38. Rb6 {[%clk 0:00:38]}  g4 {[%clk 0:00:43]} 39. Ke3 {[%clk 0:00:37]}  h4 {[%clk 0:00:42]} 40. Kf4 {[%clk 0:00:37]}  g3 {[%clk 0:00:43]} 41. hxg3 {[%clk 0:00:37]}  h3 {[%clk 0:00:43]} 42. Rd6 {[%clk 0:00:31]}  h2 {[%clk 0:00:39]} 43. Rd1 {[%clk 0:00:29]}  h1=Q {[%clk 0:00:39]} 44. Rxh1 {[%clk 0:00:28]}  Bxh1 {[%clk 0:00:40]} 45. Ke3 {[%clk 0:00:27]}  Rc5 {[%clk 0:00:37]} 46. Bxa6 {[%clk 0:00:24]}  Rxa5 {[%clk 0:00:36]} 47. Bd3 {[%clk 0:00:22]}  Rxe5+ {[%clk 0:00:34]} 48. Kd4 {[%clk 0:00:22]}  Rg5 {[%clk 0:00:32]} 49. b4 {[%clk 0:00:21]}  Rxg3 {[%clk 0:00:33]} 50. b5 {[%clk 0:00:20]}  Ke7 {[%clk 0:00:30]} 51. c4 {[%clk 0:00:20]}  Rxd3+ {[%clk 0:00:26]} 52. Kxd3 {[%clk 0:00:19]}  Kd6 {[%clk 0:00:26]} 53. Kd4 {[%clk 0:00:19]}  Bb7 {[%clk 0:00:27]} 54. c5+ {[%clk 0:00:18]}  Ke7 {[%clk 0:00:24]} 55. Kc4 {[%clk 0:00:15]}  f5 {[%clk 0:00:22]} 56. Kb4 {[%clk 0:00:14]}  f4 {[%clk 0:00:21]} 57. Ka5 {[%clk 0:00:14]}  Kd7 {[%clk 0:00:18]} 58. Kb6 {[%clk 0:00:14]}  Kc8 {[%clk 0:00:18]} 59. c6 {[%clk 0:00:12]}  Bxc6 {[%clk 0:00:17]} 60. Kc5 {[%clk 0:00:12]}  Bxb5 {[%clk 0:00:17]} 61. Kd4 {[%clk 0:00:12]}  Bc6 {[%clk 0:00:16]} 62. Ke5 {[%clk 0:00:12]}  f3 {[%clk 0:00:17]} 63. Kf4 {[%clk 0:00:12]}  f2 {[%clk 0:00:17]} 64. Ke3 {[%clk 0:00:12]}  f1=Q {[%clk 0:00:17]} 0-1


[Site "https://www.chess.com"]

[Event "Titled Tuesday Blitz August 3 2021"]
[White "Filippova, Margarita"]
[Black "Sokolin, Leonid"]
[WhiteFideId "34199680"]
[BlackFideId "2009161"]
[WhiteElo "1829"]
[BlackElo "2394"]
[Result "1-0"]
[Round "11"]
[TimeControl "180+1"]
[Date "2021.08.03"]
[WhiteClock "0:01:06"]
[BlackClock "0:00:39"]

1. Nf3 {[%clk 0:03:00]}  Nf6 {[%clk 0:02:21]} 2. c4 {[%clk 0:02:59]}  e6 {[%clk 0:02:21]} 3. Nc3 {[%clk 0:02:56]}  d5 {[%clk 0:02:21]} 4. d4 {[%clk 0:02:55]}  c5 {[%clk 0:02:21]} 5. cxd5 {[%clk 0:02:52]}  cxd4 {[%clk 0:02:22]} 6. Nxd4 {[%clk 0:02:50]}  Nxd5 {[%clk 0:02:21]} 7. g3 {[%clk 0:02:42]}  Nxc3 {[%clk 0:02:21]} 8. bxc3 {[%clk 0:02:41]}  Be7 {[%clk 0:02:14]} 9. Bg2 {[%clk 0:02:41]}  O-O {[%clk 0:02:13]} 10. O-O {[%clk 0:02:41]}  Nd7 {[%clk 0:02:09]} 11. Bb2 {[%clk 0:02:40]}  Nc5 {[%clk 0:02:08]} 12. c4 {[%clk 0:02:37]}  Bf6 {[%clk 0:01:44]} 13. Rb1 {[%clk 0:02:34]}  a6 {[%clk 0:01:37]} 14. e3 {[%clk 0:02:27]}  Qc7 {[%clk 0:01:31]} 15. Nb3 {[%clk 0:02:19]}  Bxb2 {[%clk 0:01:31]} 16. Rxb2 {[%clk 0:02:19]}  Rd8 {[%clk 0:01:28]} 17. Rd2 {[%clk 0:02:14]}  Rxd2 {[%clk 0:01:07]} 18. Qxd2 {[%clk 0:01:41]}  Nd7 {[%clk 0:01:06]} 19. c5 {[%clk 0:01:34]}  g6 {[%clk 0:01:05]} 20. Qd6 {[%clk 0:01:30]}  Qxd6 {[%clk 0:01:04]} 21. cxd6 {[%clk 0:01:29]}  Rb8 {[%clk 0:01:04]} 22. Rc1 {[%clk 0:01:25]}  Kf8 {[%clk 0:01:04]} 23. Rc7 {[%clk 0:01:20]}  Ke8 {[%clk 0:01:04]} 24. Na5 {[%clk 0:01:13]}  b6 {[%clk 0:00:51]} 25. Nc6 {[%clk 0:01:10]}  Ra8 {[%clk 0:00:39]} 26. Ne7 {[%clk 0:01:06]} 1-0


[Site "https://www.chess.com"]